bitfinex/quotes_SOLUSD_20260114
["timestamp","ask_amount","ask_price","bid_price","bid_amount"]
[1768394622444,0.68878283,144.6,144.56,16.7190401]
[1768394623652,0.68878283,144.6,144.56,12.70289554]
[1768394623947,0.68878283,144.6,144.56,16.7190401]
[1768394625247,0.68878283,144.6,144.56,16.63614456]
[1768394626246,0.68878283,144.6,144.57,4.01614456]
[1768394629649,0.68878283,144.6,144.58,4.01614456]
[1768394629857,0.68878283,144.6,144.59,12.62]
[1768394643868,0.68878283,144.6,144.58,12.62]
[1768394644949,0.68878283,144.62,144.58,16.7190401]
[1768394645154,0.68878283,144.62,144.58,12.70289554]
[1768394645349,0.72237798,144.61,144.58,12.70289554]
[1768394645658,0.72237798,144.61,144.58,16.63614456]
[1768394646461,0.72237798,144.61,144.59,12.62]
[1768394648476,0.72237798,144.6,144.57,0.08289554]
[1768394648682,0.72237798,144.6,144.58,12.62]
[1768394651354,0.72237798,144.6,144.57,4.0990401]
[1768394652287,0.72237798,144.6,144.58,12.62]
[1768394652874,0.72237798,144.6,144.57,4.0990401]
[1768394653077,0.72237798,144.6,144.56,0.08289554]
[1768394653371,0.72237798,144.6,144.57,12.62]
[1768394653776,0.72237798,144.6,144.56,4.0990401]
[1768394653958,0.72237798,144.6,144.57,12.62]
[1768394654158,0.72237798,144.6,144.56,4.0990401]
[1768394654682,0.72237798,144.6,144.57,12.62]
[1768394655068,0.72237798,144.6,144.56,0.08289554]
[1768394655378,0.72237798,144.6,144.57,12.62]
[1768394655552,0.72237798,144.6,144.56,2.65379773]
[1768394655756,0.72237798,144.6,144.57,12.62]
[1768394655952,0.72237798,144.6,144.56,0.08289554]
[1768394656152,0.72237798,144.6,144.57,12.62]
[1768394656380,0.72237798,144.6,144.56,2.65379773]
[1768394656583,0.72237798,144.6,144.57,12.62]
[1768394657079,0.72237798,144.59,144.54,0.67720327]
[1768394657281,0.72237798,144.58,144.54,15.19090219]
[1768394657664,0.72237798,144.58,144.54,15.86810546]
[1768394658383,2.57090219,144.59,144.55,0.67720327]
[1768394658862,0.72237798,144.58,144.55,0.67720327]
[1768394659059,2.57090219,144.59,144.55,0.67720327]
[1768394659258,6.91515109,144.61,144.55,0.67720327]
[1768394659455,2.57090219,144.59,144.55,0.67720327]
[1768394661070,7.62587926,144.6,144.57,0.7093825]
[1768394661279,2.57090219,144.58,144.57,0.7093825]
[1768394661471,3.25095989,144.58,144.54,13.3293825]
[1768394661670,2.5409022,144.58,144.55,0.7093825]
[1768394662585,3.25095989,144.58,144.55,0.7093825]
[1768394662782,3.25095989,144.58,144.54,12.62]
[1768394663081,3.25095989,144.58,144.55,0.7093825]
[1768394663285,0.71005769,144.58,144.55,0.7093825]
[1768394663586,2.57090219,144.59,144.55,0.7093825]
[1768394664785,2.57090219,144.58,144.55,0.7093825]
[1768394665087,0.71005769,144.57,144.54,13.3293825]
[1768394665262,2.57090219,144.58,144.55,0.7093825]
[1768394665466,3.28095988,144.58,144.55,0.7093825]
[1768394666381,2.57090219,144.59,144.55,0.7093825]
[1768394666588,3.28095988,144.59,144.55,0.7093825]
[1768394666776,0.71005769,144.58,144.54,15.90028469]
[1768394667089,2.57090219,144.59,144.55,0.7093825]
[1768394668784,0.71005769,144.58,144.55,0.7093825]
[1768394668982,2.57090219,144.59,144.55,0.7093825]
[1768394669970,0.71005769,144.58,144.55,0.7093825]
[1768394670175,2.57090219,144.59,144.55,0.7093825]
[1768394670596,7.62583976,144.6,144.55,0.7093825]
[1768394670778,0.71005769,144.59,144.55,0.7093825]
[1768394670974,0.71005769,144.58,144.54,15.19090219]
[1768394671178,0.71005769,144.58,144.54,15.90028469]
[1768394671380,2.57090219,144.59,144.55,0.7093825]
[1768394672581,10.19674195,144.6,144.56,0.7093825]
[1768394673091,0.71005769,144.57,144.53,0.82063228]
[1768394673394,0.71005769,144.57,144.54,0.7093825]
[1768394673783,0.71005769,144.57,144.53,2.68215197]
[1768394674191,0.71005769,144.57,144.54,0.7093825]
[1768394674380,0.71005769,144.57,144.53,0.11124978]
[1768394674585,0.71005769,144.57,144.53,0.82063228]
[1768394674892,0.71005769,144.57,144.53,0.11124978]
[1768394675283,0.71005769,144.57,144.54,3.27478676]
[1768394675472,0.71005769,144.57,144.54,0.70388457]
[1768394675673,0.69831293,144.58,144.54,0.70388457]
[1768394678593,0.69831293,144.58,144.53,3.38603654]
[1768394679300,0.69831293,144.58,144.54,0.70388457]
[1768394680301,3.26921512,144.58,144.54,0.70388457]
[1768394682910,3.26921512,144.58,144.53,2.68215197]
[1768394682911,0.69831293,144.57,144.53,2.68215197]
[1768394683110,0.69831293,144.57,144.53,0.81513435]
[1768394683305,0.69831293,144.57,144.53,3.38603654]
[1768394683484,9.4873213,144.59,144.54,0.70388457]
[1768394683685,0.69831293,144.58,144.54,0.70388457]
[1768394683900,0.69831293,144.58,144.53,2.68215197]
[1768394684222,0.69831293,144.58,144.53,3.38603654]
[1768394684593,0.69831293,144.57,144.54,0.70388457]
[1768394684904,0.69831293,144.58,144.54,0.70388457]
[1768394685787,0.69831293,144.58,144.54,3.27478676]
[1768394686096,0.69831293,144.58,144.55,0.70388457]
[1768394688708,0.69831293,144.58,144.54,2.57090219]
[1768394688898,0.69831293,144.58,144.55,0.70388457]
[1768394689208,9.4873213,144.59,144.55,0.70388457]
[1768394689398,10.18563423,144.59,144.55,0.70388457]
[1768394690415,7.61473204,144.59,144.55,0.70388457]
[1768394695017,10.18563423,144.59,144.55,0.70388457]
[1768394695604,0.69831293,144.58,144.55,0.70388457]
[1768394695815,0.69831293,144.58,144.53,0.11124978]
[1768394696016,0.69831293,144.58,144.53,0.81513435]
[1768394696219,0.69831293,144.58,144.53,2.68215197]
[1768394696419,0.69831293,144.58,144.53,0.11124978]
[1768394696608,0.69831293,144.58,144.54,0.70388457]
[1768394697010,0.69831293,144.58,144.53,0.11124978]
[1768394697224,0.69831293,144.58,144.54,0.70388457]
[1768394697618,7.6151767,144.58,144.54,0.70388457]
[1768394700424,6.91686377,144.58,144.55,0.70388457]
[1768394700629,7.61453871,144.59,144.55,3.27478676]
[1768394700922,0.69831293,144.56,144.5,7.38399527]
[1768394701103,6.91622578,144.59,144.53,2.57090219]
[1768394701303,9.82875202,144.58,144.55,0.70388457]
[1768394701519,5.17273179,144.57,144.55,0.70388457]
[1768394701749,6.91622578,144.59,144.55,0.70388457]
[1768394701933,9.82935676,144.58,144.55,0.70388457]
[1768394702228,9.83071484,144.57,144.55,0.70388457]
[1768394702428,6.91622578,144.59,144.55,0.70388457]
[1768394702630,9.83176427,144.58,144.55,0.70388457]
[1768394702832,9.83176427,144.57,144.55,0.70388457]
[1768394703126,6.91622578,144.59,144.55,0.70388457]
[1768394703331,9.83226738,144.58,144.55,0.70388457]
[1768394703626,9.83226738,144.57,144.55,0.70388457]
[1768394703830,6.91622578,144.59,144.55,0.70388457]
[1768394704125,9.83257423,144.58,144.55,0.70388457]
[1768394704304,9.83257423,144.57,144.55,0.70388457]
[1768394704505,9.48712797,144.59,144.55,0.70388457]
[1768394704806,9.48712797,144.59,144.5,6.6801107]
[1768394704807,10.35657564,144.58,144.54,0.70388457]
[1768394705116,9.8333193,144.57,144.54,0.70388457]
[1768394705326,10.01466973,144.59,144.54,0.70388457]
[1768394705548,9.93320798,144.58,144.54,0.70388457]
[1768394705721,9.83420798,144.57,144.54,0.70388457]
[1768394705928,0.099,144.58,144.54,0.70388457]
[1768394706235,9.83441462,144.57,144.54,0.70388457]
[1768394706434,5.17608428,144.56,144.54,0.70388457]
[1768394706644,0.099,144.58,144.54,0.70388457]
[1768394706848,9.83496709,144.57,144.54,0.70388457]
[1768394707146,0.099,144.58,144.52,0.69006743]
[1768394707345,9.83553355,144.57,144.54,0.69006743]
[1768394707534,16.69478043,144.59,144.54,0.69006743]
[1768394707736,9.8361787,144.58,144.54,0.69006743]
[1768394707936,9.8361787,144.57,144.54,0.69006743]
[1768394708136,16.69478043,144.59,144.54,0.69006743]
[1768394708338,9.83687248,144.58,144.54,0.69006743]
[1768394708538,9.83687248,144.57,144.54,0.69006743]
[1768394708745,5.17713729,144.56,144.54,0.69006743]
[1768394708951,0.10324256,144.56,144.53,2.57090219]
[1768394709153,16.69478043,144.59,144.54,0.69006743]
[1768394709348,9.83799318,144.58,144.54,0.69006743]
[1768394709542,9.83799318,144.57,144.55,0.69006743]
[1768394709750,14.12387824,144.59,144.55,0.69006743]
[1768394709942,9.83813689,144.58,144.55,0.69006743]
[1768394710137,9.83813689,144.57,144.55,0.69006743]
[1768394710452,13.59633648,144.59,144.55,0.69006743]
[1768394710753,9.83905038,144.58,144.55,0.69006743]
[1768394710956,9.83905038,144.57,144.55,0.69006743]
[1768394711133,16.26623867,144.59,144.55,0.69006743]
[1768394711453,9.83939033,144.58,144.55,0.69006743]
[1768394711654,9.83939033,144.57,144.55,0.69006743]
[1768394711953,16.26623867,144.59,144.55,0.69006743]
[1768394712254,9.83983565,144.58,144.55,0.69006743]
[1768394712455,9.83983565,144.57,144.55,0.69006743]
[1768394712641,16.26623867,144.59,144.55,0.69006743]
[1768394712842,9.84073679,144.58,144.55,0.69006743]
[1768394713042,9.84073679,144.57,144.55,0.69006743]
[1768394713256,13.69533648,144.59,144.55,0.69006743]
[1768394713553,9.84177959,144.58,144.55,0.69006743]
[1768394713751,9.84177959,144.57,144.55,0.69006743]
[1768394713958,13.69533648,144.59,144.55,0.69006743]
[1768394714138,9.84177959,144.58,144.55,0.69006743]
[1768394714354,9.84177959,144.57,144.55,0.69006743]
[1768394714571,2.73336828,144.56,144.53,0.69006743]
[1768394714757,13.59633648,144.59,144.55,0.69006743]
[1768394714964,4.66250558,144.58,144.55,0.69006743]
[1768394715172,0.10324256,144.56,144.54,2.57090219]
[1768394715847,0.10324256,144.56,144.51,0.69006743]
[1768394716052,0.10324256,144.56,144.53,2.57090219]
[1768394716766,0.52754176,144.57,144.53,3.26096962]
[1768394716951,24.73396485,144.58,144.54,0.69006743]
[1768394717155,4.66395865,144.57,144.54,0.69006743]
[1768394717371,14.12444416,144.58,144.54,0.69006743]
[1768394717573,4.66496637,144.57,144.54,0.69006743]
[1768394717772,14.12444416,144.58,144.54,0.69006743]
[1768394717981,4.66496637,144.57,144.54,0.69006743]
[1768394718151,14.12444416,144.58,144.54,0.69006743]
[1768394718354,4.66495786,144.57,144.54,0.69006743]
[1768394718574,14.12444416,144.58,144.54,0.69006743]
[1768394718770,4.66497571,144.57,144.54,0.69006743]
[1768394718973,7.44433346,144.58,144.54,0.69006743]
[1768394719170,4.76397571,144.57,144.53,4.70934965]
[1768394719379,0.099,144.57,144.53,4.70934965]
[1768394719682,4.66516455,144.56,144.53,4.70934965]
[1768394719862,0.099,144.57,144.53,4.70934965]
[1768394720067,4.66516455,144.56,144.53,4.70934965]
[1768394720265,0.099,144.57,144.53,4.70934965]
[1768394720564,4.6650013,144.56,144.53,4.70934965]
[1768394720778,0.099,144.57,144.53,4.70934965]
[1768394721084,4.6650013,144.56,144.53,4.70934965]
[1768394721257,0.099,144.57,144.53,4.70934965]
[1768394721459,4.66486564,144.56,144.53,4.70934965]
[1768394721659,0.099,144.57,144.53,0.69006743]
[1768394721859,4.66486564,144.56,144.53,4.70934965]
[1768394722067,0.099,144.57,144.53,4.70934965]
[1768394722272,4.66485781,144.56,144.53,4.70934965]
[1768394722484,0.099,144.57,144.53,4.70934965]
[1768394722783,4.66475576,144.56,144.53,4.70934965]
[1768394722980,0.099,144.57,144.53,4.70934965]
[1768394723284,5.18801373,144.56,144.53,4.01928222]
[1768394723465,0.52325634,144.56,144.53,4.699196]
[1768394725179,0.52325634,144.56,144.53,0.67991378]
[1768394725379,0.52325634,144.56,144.53,4.699196]
[1768394726198,0.52325634,144.56,144.53,0.67991378]
[1768394726404,0.52325634,144.56,144.53,4.699196]
[1768394726981,0.099,144.57,144.54,0.67991378]
[1768394727182,9.84723174,144.56,144.54,0.67991378]
[1768394727399,0.099,144.57,144.54,0.67991378]
[1768394727711,9.84718599,144.56,144.54,0.67991378]
[1768394727912,7.44433346,144.58,144.54,0.67991378]
[1768394728085,9.84718436,144.57,144.54,0.67991378]
[1768394728287,9.84718256,144.56,144.54,0.67991378]
[1768394728605,7.44433346,144.58,144.54,0.67991378]
[1768394728807,9.84716922,144.57,144.54,0.67991378]
[1768394728986,9.84716922,144.56,144.54,0.67991378]
[1768394729309,7.44433346,144.58,144.54,0.67991378]
[1768394729518,9.94616702,144.57,144.54,4.699196]
[1768394729687,9.84716702,144.56,144.54,4.699196]
[1768394729881,0.099,144.57,144.54,4.699196]
[1768394730082,9.84717357,144.56,144.54,4.699196]
[1768394730281,0.099,144.57,144.54,4.699196]
[1768394730603,9.84721454,144.56,144.54,4.699196]
[1768394730803,6.9167917,144.58,144.54,4.699196]
[1768394731010,9.84720936,144.57,144.54,4.699196]
[1768394731302,9.84720936,144.56,144.54,4.699196]
[1768394731502,7.44433346,144.58,144.54,4.699196]
[1768394731714,9.84728089,144.57,144.54,4.699196]
[1768394731914,9.84728089,144.56,144.54,4.699196]
[1768394732088,7.44433346,144.58,144.54,4.699196]
[1768394732289,9.84694143,144.57,144.54,4.699196]
[1768394732491,4.66436815,144.56,144.54,4.699196]
[1768394732694,0.099,144.57,144.54,0.67991378]
[1768394732895,4.66441778,144.56,144.54,4.699196]
[1768394733103,0.099,144.57,144.54,4.699196]
[1768394733311,4.66448798,144.56,144.54,4.01928222]
[1768394733514,0.099,144.57,144.54,4.01928222]
[1768394733808,4.66453766,144.56,144.54,0.67991378]
[1768394734012,0.099,144.57,144.54,4.699196]
[1768394734217,10.37061722,144.56,144.54,4.01928222]
[1768394734398,0.52325634,144.56,144.54,4.01928222]
[1768394734591,0.52325634,144.56,144.53,4.699196]
[1768394735006,13.5969024,144.58,144.53,4.699196]
[1768394735212,10.37518171,144.57,144.53,4.699196]
[1768394735402,9.84763995,144.56,144.53,4.699196]
[1768394735606,0.52754176,144.57,144.53,4.699196]
[1768394735915,9.84793599,144.56,144.53,4.699196]
[1768394736085,0.52754176,144.57,144.53,4.699196]
[1768394736286,9.84804934,144.56,144.53,0.67991378]
[1768394736592,0.52754176,144.57,144.53,4.699196]
[1768394736788,9.8482584,144.56,144.53,4.699196]
[1768394737009,0.52754176,144.57,144.53,4.699196]
[1768394737313,9.84825497,144.56,144.53,4.699196]
[1768394737519,5.1832874,144.55,144.53,4.699196]
[1768394739990,0.099,144.56,144.53,4.699196]
[1768394740211,9.84998177,144.55,144.53,4.01928222]
[1768394740392,5.28738255,144.54,144.51,4.01928222]
[1768394740595,0.10324256,144.54,144.51,4.01928222]
[1768394741318,0.10324256,144.54,144.52,4.01928222]
[1768394741819,0.52754176,144.55,144.52,4.01928222]
[1768394741994,9.84867928,144.54,144.52,4.01928222]
[1768394742199,0.52754176,144.55,144.52,4.01928222]
[1768394742507,9.84797069,144.54,144.52,4.01928222]
[1768394742706,0.52754176,144.55,144.52,4.01928222]
[1768394742911,9.84732889,144.54,144.52,4.01928222]
[1768394743092,0.52754176,144.55,144.52,4.01928222]
[1768394743284,9.84738911,144.54,144.52,4.01928222]
[1768394743490,0.52754176,144.55,144.52,4.01928222]
[1768394743790,0.52754176,144.56,144.53,4.01928222]
[1768394743990,9.8458376,144.55,144.54,4.01928222]
[1768394745322,9.8458376,144.55,144.53,4.69311043]
[1768394745527,7.0162697,144.57,144.53,4.69311043]
[1768394745818,9.84528066,144.56,144.53,4.69311043]
[1768394746116,9.84528066,144.55,144.53,4.69311043]
[1768394746321,7.0162697,144.57,144.53,4.69311043]
[1768394746620,9.84486377,144.56,144.53,4.69311043]
[1768394746826,9.84486377,144.55,144.53,4.69311043]
[1768394747131,7.0162697,144.57,144.53,4.69311043]
[1768394747335,9.84483319,144.56,144.53,4.69311043]
[1768394747638,9.84483319,144.55,144.53,4.69311043]
[1768394747808,7.0162697,144.57,144.53,4.69311043]
[1768394748139,9.84457638,144.56,144.53,0.67382821]
[1768394748430,9.84457638,144.55,144.53,4.69311043]
[1768394748631,7.0162697,144.57,144.53,4.69311043]
[1768394748806,9.84434895,144.56,144.53,4.69311043]
[1768394749007,9.84434895,144.55,144.53,4.69311043]
[1768394749209,7.0162697,144.57,144.53,4.69311043]
[1768394749408,9.8442357,144.56,144.53,0.67382821]
[1768394749709,9.8442357,144.55,144.53,4.69311043]
[1768394750007,0.52325634,144.56,144.53,4.69311043]
[1768394750305,9.8441642,144.55,144.53,4.69311043]
[1768394750498,0.52325634,144.56,144.53,4.69311043]
[1768394750700,9.84399291,144.55,144.53,4.69311043]
[1768394750897,0.52325634,144.56,144.53,4.69311043]
[1768394751110,9.84399291,144.55,144.53,4.69311043]
[1768394751330,0.52325634,144.56,144.53,4.69311043]
[1768394751506,9.84372148,144.55,144.53,4.69311043]
[1768394751706,0.52325634,144.56,144.53,4.69311043]
[1768394751923,9.8437231,144.55,144.52,4.69311043]
[1768394752128,0.10324256,144.55,144.52,0.67382821]
[1768394752429,0.10324256,144.55,144.52,4.69311043]
[1768394754724,13.8345394,144.57,144.52,4.69311043]
[1768394754929,10.37038384,144.56,144.53,0.67382821]
[1768394755131,0.52754176,144.56,144.53,0.67382821]
[1768394758942,0.52754176,144.56,144.52,0.67382821]
[1768394759118,0.52754176,144.56,144.52,4.69311043]
[1768394764740,0.52754176,144.56,144.53,0.67382821]
[1768394767649,0.52754176,144.57,144.53,0.67382821]
[1768394767942,9.84442565,144.56,144.54,0.66520236]
[1768394768240,0.099,144.57,144.54,0.66520236]
[1768394768538,4.54253856,144.55,144.49,4.01928222]
[1768394768739,9.94785385,144.54,144.51,0.66520236]
[1768394769037,9.84461129,144.53,144.51,0.66520236]
[1768394769241,0.10324256,144.54,144.47,4.01928222]
[1768394769242,14.53348726,144.52,144.47,4.01928222]
[1768394769448,5.18026017,144.51,144.48,4.01928222]
[1768394769639,0.099,144.52,144.48,4.01928222]
[1768394769831,5.18047435,144.51,144.48,4.01928222]
[1768394770140,4.01928222,144.52,144.5,4.01928222]
[1768394770446,6.91859991,144.53,144.5,4.01928222]
[1768394770742,5.17829973,144.52,144.5,4.01928222]
[1768394770948,7.01759991,144.53,144.5,4.01928222]
[1768394771120,5.17829973,144.52,144.5,4.01928222]
[1768394771320,6.91859991,144.53,144.51,0.66520236]
[1768394771543,5.17674947,144.52,144.51,0.63890561]
[1768394772521,5.17674947,144.52,144.49,4.01928222]
[1768394772722,7.59253409,144.53,144.49,4.01928222]
[1768394772929,5.17546545,144.52,144.49,4.01928222]
[1768394773128,7.59253409,144.53,144.49,4.01928222]
[1768394773339,7.59253409,144.53,144.45,0.2]
[1768394773524,7.59253409,144.53,144.49,0.66520236]
[1768394774745,0.67393418,144.53,144.49,0.66520236]
[1768394774928,4.01928222,144.53,144.49,0.66520236]
[1768394775528,4.01928222,144.53,144.5,0.66520236]
[1768394777742,4.13888163,144.53,144.49,0.66520236]
[1768394777929,0.66839083,144.52,144.49,0.66520236]
[1768394778848,0.66839083,144.52,144.47,3.23901345]
[1768394779045,0.66839083,144.52,144.48,0.66520236]
[1768394780737,0.12508733,144.51,144.47,0.69720742]
[1768394781139,0.12508733,144.51,144.47,3.27101851]
[1768394781342,0.12508733,144.51,144.48,0.69720742]
[1768394782535,0.12508733,144.51,144.47,3.27101851]
[1768394782945,0.12508733,144.51,144.48,0.69720742]
[1768394783351,22.31353167,144.52,144.48,0.69720742]
[1768394784327,22.41253167,144.52,144.48,0.69720742]
[1768394785457,19.83872058,144.52,144.48,0.69720742]
[1768394785959,7.60878456,144.51,144.48,0.69720742]
[1768394786447,6.92000031,144.51,144.48,0.69720742]
[1768394789053,12.82,144.52,144.48,0.69720742]
[1768394789245,0.69474167,144.53,144.49,0.69720742]
[1768394789442,3.26855276,144.53,144.49,0.69720742]
[1768394789640,0.099,144.52,144.49,0.69720742]
[1768394791738,0.099,144.52,144.48,0.69720742]
[1768394792958,0.68878425,144.51,144.48,0.69720742]
[1768394795360,0.68878425,144.51,144.46,3.23213073]
[1768394795551,0.10489784,144.5,144.46,3.23213073]
[1768394795749,0.10489784,144.5,144.47,0.65831964]
[1768394797162,2.57381109,144.51,144.47,0.65831964]
[1768394797563,2.69813696,144.51,144.47,0.65831964]
[1768394798142,0.12432587,144.51,144.47,0.65831964]
[1768394798346,2.69813696,144.51,144.47,0.65831964]
[1768394801862,0.12971972,144.49,144.45,13.47831964]
[1768394802964,0.12971972,144.49,144.46,0.65831964]
[1768394805866,0.12432587,144.5,144.46,0.65831964]
[1768394824883,0.12432587,144.5,144.45,13.47831964]
[1768394825080,0.12432587,144.5,144.45,0.85831964]
[1768394825265,0.12432587,144.5,144.46,12.62]
[1768394825468,0.12432587,144.5,144.46,13.29569969]
[1768394825673,0.12432587,144.5,144.47,0.67569969]
[1768394827185,0.12432587,144.5,144.46,12.62]
[1768394827576,0.12432587,144.5,144.47,0.67569969]
[1768394828464,2.69813696,144.5,144.47,0.67569969]
[1768394828671,0.12432587,144.5,144.47,0.67569969]
[1768394828880,10.16982117,144.51,144.47,0.67569969]
[1768394829187,9.85039078,144.5,144.47,0.67569969]
[1768394829380,10.16982117,144.51,144.47,0.67569969]
[1768394829582,9.85038213,144.5,144.47,0.67569969]
[1768394829783,10.16982117,144.51,144.47,0.67569969]
[1768394829975,9.85038213,144.5,144.47,0.67569969]
[1768394830174,10.16982117,144.51,144.47,0.67569969]
[1768394830374,9.85033024,144.5,144.47,0.67569969]
[1768394830576,10.16982117,144.51,144.47,0.67569969]
[1768394830794,9.85037389,144.5,144.47,0.67569969]
[1768394831091,10.16982117,144.51,144.47,0.67569969]
[1768394831266,9.85032271,144.5,144.47,0.67569969]
[1768394831466,2.57381109,144.5,144.47,0.67569969]
[1768394831680,10.16982117,144.51,144.47,0.67569969]
[1768394831880,9.85036646,144.5,144.47,0.67569969]
[1768394832083,2.57381109,144.5,144.47,0.67569969]
[1768394832274,5.18425504,144.49,144.47,0.67569969]
[1768394832475,2.57381109,144.5,144.47,0.67569969]
[1768394832685,5.18436069,144.49,144.47,0.67569969]
[1768394832864,2.69135362,144.5,144.47,0.67569969]
[1768394837068,2.69135362,144.5,144.45,12.82]
[1768394837294,4.69977674,144.5,144.45,12.82]
[1768394838686,4.69977674,144.51,144.45,16.8437649]
[1768394838871,9.85455576,144.5,144.45,16.8437649]
[1768394839080,4.69977674,144.51,144.46,0.67569969]
[1768394839282,9.85475615,144.5,144.46,0.67569969]
[1768394839594,4.69977674,144.51,144.46,0.67569969]
[1768394839788,9.85504963,144.5,144.46,0.67569969]
[1768394839975,4.69977674,144.51,144.46,0.67569969]
[1768394840177,5.18665026,144.5,144.46,0.67569969]
[1768394840388,4.69977674,144.51,144.46,0.67569969]
[1768394840584,5.18681051,144.5,144.46,0.67569969]
[1768394840776,0.6703267,144.5,144.46,0.67569969]
[1768394847390,0.6703267,144.5,144.45,17.53966122]
[1768394848002,0.6703267,144.5,144.46,0.69589632]
[1768394849401,4.6940916,144.5,144.46,0.69589632]
[1768394850597,0.6703267,144.49,144.46,0.69589632]
[1768394855302,4.69105589,144.52,144.46,0.69589632]
[1768394855496,10.52162438,144.51,144.47,0.69220454]
[1768394855712,0.66729099,144.52,144.48,12.62]
[1768394855890,5.18620781,144.51,144.48,12.62]
[1768394856092,0.66729099,144.52,144.48,12.62]
[1768394856291,5.18620962,144.51,144.48,12.62]
[1768394856493,0.66729099,144.52,144.48,12.62]
[1768394856692,5.18542572,144.51,144.48,12.62]
[1768394856922,4.69105589,144.53,144.48,12.62]
[1768394857223,9.85230539,144.52,144.48,12.62]
[1768394857396,5.18542037,144.51,144.48,12.62]
[1768394857597,4.69105589,144.53,144.49,0.69220454]
[1768394857797,9.85112854,144.52,144.49,0.69220454]
[1768394858000,4.69105589,144.54,144.48,16.6437649]
[1768394858200,4.66609345,144.53,144.48,16.6437649]
[1768394858410,4.69105589,144.54,144.48,16.6437649]
[1768394858607,4.66500833,144.53,144.48,16.6437649]
[1768394858912,4.69105589,144.54,144.48,16.6437649]
[1768394859218,4.66500833,144.53,144.48,16.6437649]
[1768394859417,4.69105589,144.54,144.48,16.6437649]
[1768394859625,4.6641744,144.53,144.48,23.56505052]
[1768394859920,4.69105589,144.54,144.48,16.6437649]
[1768394860123,4.6641744,144.53,144.48,16.6437649]
[1768394860318,4.0237649,144.54,144.48,16.6437649]
[1768394860502,0.66729099,144.51,144.49,12.62]
[1768394860703,4.0237649,144.52,144.5,11.17]
[1768394860903,4.0237649,144.52,144.5,10.38729099]
[1768394861321,4.0237649,144.51,144.5,10.38729099]
[1768394862402,4.0237649,144.52,144.5,10.327291]
[1768394863230,4.0237649,144.52,144.49,0.69220454]
[1768394864529,4.0237649,144.54,144.49,0.69220454]
[1768394864724,4.0237649,144.55,144.5,0.69220454]
[1768394864926,4.66280187,144.54,144.5,0.69220454]
[1768394865233,4.0237649,144.55,144.51,0.69220454]
[1768394865410,4.66186405,144.54,144.51,0.69220454]
[1768394865608,4.0237649,144.55,144.51,0.69220454]
[1768394865828,4.66186568,144.54,144.51,0.69220454]
[1768394866030,4.0237649,144.55,144.5,13.31220454]
[1768394866233,4.66186568,144.54,144.5,13.31220454]
[1768394866423,4.0237649,144.55,144.5,13.31220454]
[1768394866627,4.6610428,144.54,144.5,13.31220454]
[1768394866813,4.0237649,144.55,144.5,13.31220454]
[1768394867139,8.6848077,144.54,144.51,0.69220454]
[1768394867344,4.0237649,144.54,144.51,0.69220454]
[1768394867832,109.8170848,144.57,144.51,0.69220454]
[1768394868037,4.0237649,144.54,144.51,0.69220454]
[1768394872843,12.73499211,144.58,144.51,0.69220454]
[1768394873021,12.73499211,144.58,144.51,4.71596944]
[1768394873022,4.0237649,144.56,144.51,4.71596944]
[1768394873215,13.85683894,144.55,144.52,0.69220454]
[1768394873412,4.0237649,144.55,144.52,0.62202507]
[1768394876918,4.09394437,144.55,144.51,0.69220454]
[1768394883046,4.0237649,144.54,144.51,0.69220454]
[1768394883748,4.0237649,144.52,144.5,0.69220454]
[1768394884740,4.09394437,144.53,144.5,0.69220454]
[1768394888449,0.07017947,144.53,144.5,0.69220454]
[1768394888753,4.09394437,144.53,144.5,0.69220454]
[1768394891560,4.09394437,144.52,144.48,0.68765967]
[1768394893053,0.07017947,144.52,144.48,0.68765967]
[1768394894052,4.09394437,144.52,144.48,0.68765967]
[1768394896560,5.1763459,144.51,144.48,0.68765967]
[1768394896754,4.09394437,144.52,144.48,0.68765967]
[1768394896954,9.27029207,144.51,144.48,0.68765967]
[1768394897161,4.09394437,144.51,144.48,0.68765967]
[1768394899440,2.64485519,144.51,144.48,0.68765967]
[1768394900765,2.64485519,144.52,144.48,0.68765967]
[1768394900944,5.17713141,144.51,144.48,0.68765967]
[1768394901146,2.64485519,144.53,144.49,0.70208106]
[1768394901440,9.83628835,144.52,144.49,0.70208106]
[1768394901656,5.17707514,144.51,144.49,0.70208106]
[1768394901851,2.64485519,144.53,144.49,0.70208106]
[1768394902054,9.83603073,144.52,144.49,0.70208106]
[1768394902253,2.64485519,144.54,144.49,2.57467572]
[1768394902649,0.71464803,144.53,144.49,2.57467572]
[1768394902857,0.71464803,144.53,144.5,0.70208106]
[1768394905980,3.28932375,144.53,144.5,0.70208106]
[1768394906973,0.71464803,144.53,144.5,0.70208106]
[1768394907172,3.28932375,144.53,144.5,0.70208106]
[1768394909489,0.71464803,144.53,144.5,0.70208106]
[1768394909666,3.28932375,144.53,144.5,0.70208106]
[1768394909864,0.71464803,144.53,144.5,0.70208106]
[1768394918673,3.2835135,144.54,144.5,0.70208106]
[1768394918967,9.8369117,144.53,144.5,0.70208106]